fUSD/lending_fUSD_20260329
["ID","MTS","AMOUNT","RATE_DAILY","PERIOD"]
[419029177,1774785042562,-500.0,0.00014092,2]
[419029178,1774785042571,-500.0,0.00014092,2]
[419029179,1774785042582,-500.0,0.00014092,2]
[419029181,1774785042591,-500.0,0.00014092,2]
[419029182,1774785042601,-500.0,0.00014092,2]
[419029184,1774785042610,-500.0,0.00014092,2]
[419029185,1774785042619,-500.0,0.00014092,2]
[419029186,1774785042629,-500.0,0.00014092,2]
[419029187,1774785042639,-580.96645017,0.00014092,2]
[419029188,1774785042649,-500.0,0.00014092,2]
[419029189,1774785042660,-500.0,0.00014092,2]
[419029190,1774785042669,-500.0,0.00014092,2]
[419029191,1774785042679,-483.29461098,0.00014092,2]
[419029192,1774785042688,-500.0,0.00014092,2]
[419029193,1774785042697,-508.56311436,0.00014092,2]
[419029194,1774785042706,-704.0,0.00014092,2]
[419029195,1774785042715,-500.0,0.00014092,2]
[419029196,1774785042725,-500.0,0.00014092,2]
[419029197,1774785042734,-704.0,0.00014092,2]
[419029198,1774785042743,-500.0,0.00014092,2]
[419029199,1774785042753,-429.0,0.00014092,2]
[419029200,1774785042761,-704.0,0.00014092,2]
[419029202,1774785042771,-500.0,0.00014092,2]
[419029204,1774785042780,-500.0,0.00014092,2]
[419029206,1774785042789,-429.0,0.00014092,2]
[419029207,1774785042799,-704.0,0.00014092,2]
[419029208,1774785042808,-500.0,0.00014092,2]
[419029209,1774785042817,-221.42926466,0.00014092,2]
[419029210,1774785042827,-500.0,0.00014092,2]
[419029211,1774785042836,-429.0,0.00014092,2]
[419029212,1774785042846,-704.0,0.00014092,2]
[419029213,1774785042855,-500.0,0.00014092,2]
[419029214,1774785042865,-500.0,0.00014092,2]
[419029215,1774785042874,-429.0,0.00014092,2]
[419029216,1774785042884,-704.0,0.00014092,2]
[419029217,1774785042894,-500.0,0.00014092,2]
[419029218,1774785042903,-500.0,0.00014092,2]
[419029219,1774785042914,-429.0,0.00014092,2]
[419029220,1774785042923,-704.0,0.00014092,2]
[419029221,1774785042933,-500.0,0.00014092,2]
[419029222,1774785042944,-414.92841658,0.00014092,2]
[419029223,1774785042956,-429.0,0.00014092,2]
[419029224,1774785042966,-500.0,0.00014092,2]
[419029225,1774785042976,-704.0,0.00014092,2]
[419029226,1774785042986,-429.0,0.00014092,2]
[419029227,1774785042996,-500.0,0.00014092,2]
[419029228,1774785043006,-500.0,0.00014092,2]
[419029229,1774785043016,-704.0,0.00014092,2]
[419029230,1774785043025,-429.0,0.00014092,2]
[419029231,1774785043035,-500.0,0.00014092,2]
[419029232,1774785043044,-704.0,0.00014092,2]
[419029233,1774785043054,-219.10448352,0.00014092,2]
[419029234,1774785043064,-429.0,0.00014092,2]
[419029235,1774785043073,-704.0,0.00014092,2]
[419029236,1774785043175,-500.0,0.00014092,2]
[419029237,1774785043185,-704.0,0.00014092,2]
[419029238,1774785043195,-500.0,0.00014092,2]
[419029239,1774785043204,-429.0,0.00014092,2]
[419029240,1774785043214,-704.0,0.00014092,2]
[419029241,1774785043224,-500.0,0.00014092,2]
[419029242,1774785043234,-429.0,0.00014092,2]
[419029243,1774785043244,-704.0,0.00014092,2]
[419029244,1774785043254,-500.0,0.00014092,2]
[419029245,1774785043263,-429.0,0.00014092,2]
[419029246,1774785043273,-704.0,0.00014092,2]
[419029247,1774785043283,-500.0,0.00014092,2]
[419029248,1774785043293,-429.0,0.00014092,2]
[419029249,1774785043303,-704.0,0.00014092,2]
[419029250,1774785043312,-500.0,0.00014092,2]
[419029251,1774785043322,-429.0,0.00014092,2]
[419029252,1774785043331,-704.0,0.00014092,2]
[419029253,1774785043342,-500.0,0.00014092,2]
[419029254,1774785043352,-429.0,0.00014092,2]
[419029255,1774785043362,-583.94965812,0.00014092,2]
[419029256,1774785043372,-429.0,0.00014092,2]
[419029257,1774785043382,-704.0,0.00014092,2]
[419029258,1774785043393,-429.0,0.00014092,2]
[419029259,1774785043403,-704.0,0.00014092,2]
[419029260,1774785043413,-429.0,0.00014092,2]
[419029261,1774785043423,-429.0,0.00014092,2]
[419029262,1774785043432,-704.0,0.00014092,2]
[419029263,1774785043443,-429.0,0.00014092,2]
[419029264,1774785043452,-704.0,0.00014092,2]
[419029265,1774785043462,-429.0,0.00014092,2]
[419029266,1774785043472,-704.0,0.00014092,2]
[419029267,1774785043482,-429.0,0.00014092,2]
[419029268,1774785043492,-704.0,0.00014092,2]
[419029269,1774785043502,-429.0,0.00014092,2]
[419029270,1774785043512,-707.6946264,0.00014092,2]
[419029271,1774785043522,-452.93669017,0.00014092,2]
[419029272,1774785043532,-500.0,0.00014092,2]
[419029274,1774785043542,-500.0,0.00014092,2]
[419029275,1774785043551,-500.0,0.00014092,2]
[419029276,1774785043561,-500.0,0.00014092,2]
[419029277,1774785043570,-500.0,0.00014092,2]
[419029278,1774785043580,-205.90951439,0.00014103,2]
[419029279,1774785043590,-500.0,0.00014115,2]
[419029280,1774785043599,-500.0,0.00014115,2]
[419029281,1774785043609,-500.0,0.00014115,2]
[419029282,1774785043618,-500.0,0.00014115,2]
[419029283,1774785043628,-916547.9115551,0.00014116,2]
[419029284,1774785043638,-151.0,0.00014116,2]
[419029285,1774785043648,-151.0,0.00014116,2]
[419029286,1774785043658,-151.0,0.00014116,2]
[419029287,1774785043668,-151.0,0.00014116,2]
[419029288,1774785043677,-209.126428,0.00014116,2]
[419029289,1774785043686,-209.126428,0.00014116,2]
[419029290,1774785043696,-209.126428,0.00014116,2]
[419029291,1774785043706,-151.0,0.00014116,2]
[419029292,1774785043715,-209.126428,0.00014116,2]
[419029293,1774785043725,-151.0,0.00014116,2]
[419029294,1774785043734,-151.0,0.00014116,2]
[419029295,1774785043744,-151.0,0.00014116,2]
[419029297,1774785043753,-151.0,0.00014116,2]
[419029298,1774785043763,-151.0,0.00014116,2]
[419029300,1774785043773,-151.0,0.00014116,2]
[419029301,1774785043782,-157.023358,0.00014116,2]
[419029302,1774785043792,-157.023358,0.00014116,2]
[419029303,1774785043801,-157.023358,0.00014116,2]
[419029304,1774785043811,-157.023358,0.00014116,2]
[419029305,1774785043830,-1007.910664,0.00014116,2]
[419029306,1774785043848,-1007.910664,0.00014116,2]
[419029307,1774785043865,-1007.910664,0.00014116,2]
[419029308,1774785043885,-1007.910664,0.00014116,2]
[419029309,1774785043904,-1303.469842,0.00014116,2]
[419029310,1774785043924,-1303.469842,0.00014116,2]
[419029311,1774785043940,-1303.469842,0.00014116,2]
[419029312,1774785043956,-1303.469842,0.00014116,2]
[419029313,1774785043975,-151.0,0.00014116,2]
[419029314,1774785043996,-151.0,0.00014116,2]
[419029315,1774785044012,-1235.078805,0.00014116,2]
[419029316,1774785044027,-1235.078805,0.00014116,2]
[419029317,1774785044043,-1235.078805,0.00014116,2]
[419029318,1774785044062,-1235.078805,0.00014116,2]
[419029319,1774785044079,-16206.2652781,0.00014124,2]
[419029320,1774785044093,-2131.0,0.00014134,2]
[419029321,1774785044108,-2131.0,0.00014135,2]
[419029322,1774785044123,-374.30379425,0.00014136,2]
[419029323,1774785044138,-7698.7776625,0.00014146,2]
[419029324,1774785044153,-500.0,0.00014172,2]
[419029325,1774785044169,-500.0,0.00014173,2]
[419029326,1774785044184,-500.0,0.00014173,2]
[419029327,1774785044198,-500.0,0.00014173,2]
[419029328,1774785044213,-502.34122551,0.00014173,2]
[419029329,1774785044228,-500.0,0.00014173,2]
[419029330,1774785044243,-500.0,0.00014173,2]
[419029331,1774785044258,-500.0,0.00014173,2]
[419029332,1774785044273,-500.0,0.00014173,2]
[419029333,1774785044288,-500.0,0.00014173,2]
[419029334,1774785044303,-500.0,0.00014173,2]
[419029335,1774785044318,-500.66013703,0.00014173,2]
[419029336,1774785044333,-403.83679365,0.00014173,2]
[419029337,1774785044348,-500.0,0.00014173,2]
[419029338,1774785044362,-500.0,0.00014173,2]
[419029339,1774785044376,-500.0,0.00014173,2]
[419029340,1774785044392,-500.0,0.00014173,2]
[419029341,1774785044408,-500.0,0.00014173,2]
[419029342,1774785044422,-500.0,0.00014173,2]
[419029343,1774785044437,-500.0,0.00014173,2]
[419029344,1774785044452,-500.37169193,0.00014173,2]
[419029345,1774785044467,-500.0,0.00014173,2]
[419029346,1774785044482,-500.0,0.00014173,2]
[419029347,1774785044496,-500.0,0.00014173,2]
[419029348,1774785044510,-500.0,0.00014173,2]
[419029349,1774785044524,-500.0,0.00014173,2]
[419029350,1774785044538,-500.0,0.00014173,2]
[419029351,1774785044554,-2000.0,0.000142,2]
[419029352,1774785044567,-150.0,0.000142,2]
[419029353,1774785044583,-435.08367478,0.00014201,2]
[419029354,1774785044596,-272.177711,0.00014202,2]
[419029355,1774785044611,-500.0,0.00014205,2]
[419029356,1774785044625,-1000.0,0.00014206,2]
[419029357,1774785044640,-1000.0,0.00014206,2]
[419029358,1774785044653,-1000.0,0.00014206,2]
[419029359,1774785044668,-1000.0,0.00014206,2]
[419029360,1774785044682,-1000.0,0.00014206,2]
[419029361,1774785044696,-1000.0,0.00014206,2]
[419029362,1774785044709,-1000.0,0.00014206,2]
[419029363,1774785044723,-1000.0,0.00014206,2]
[419029364,1774785044737,-1000.0,0.00014206,2]
[419029365,1774785044751,-1000.0,0.00014206,2]
[419029366,1774785044765,-1000.0,0.00014206,2]
[419029367,1774785044780,-1000.0,0.00014206,2]
[419029368,1774785044794,-1000.0,0.00014206,2]
[419029369,1774785044808,-1000.0,0.00014206,2]
[419029370,1774785044822,-1000.0,0.00014206,2]
[419029371,1774785044837,-1000.0,0.00014206,2]
[419029372,1774785045003,-479.62688603,0.00014206,2]
[419029373,1774785045027,-2000.0,0.00014206,2]
[419029374,1774785045036,-2000.0,0.00014206,2]
[419029375,1774785045046,-2000.0,0.00014206,2]
[419029376,1774785045056,-2000.0,0.00014206,2]
[419029377,1774785045066,-2000.0,0.00014206,2]
[419029378,1774785045075,-2000.0,0.00014206,2]
[419029379,1774785045084,-154.51188614,0.00014212,2]
[419029380,1774785045094,-987.86,0.00014238,2]
[419029381,1774785045104,-225.04,0.00014244,2]
[419029382,1774785045114,-347.0,0.00014247,2]
[419029383,1774785045123,-500.0,0.0001425,2]
[419029384,1774785045133,-2131.0,0.00014263,2]
[419029385,1774785045143,-1079.3194623,0.00014265,5]
[419029386,1774785045152,-467.0,0.00014294,2]
[419029387,1774785045162,-470.63,0.000143,2]
[419029388,1774785045171,-2000.0,0.00014316,2]
[419029389,1774785045180,-21467.7274003,0.00014331,2]
[419029390,1774785045190,-2000.0,0.0001435,2]
[419029391,1774785045199,-441.94,0.00014384,2]
[419029392,1774785045209,-2131.0,0.00014398,2]
[419029393,1774785045218,-2130.0,0.00014398,2]
[419029394,1774785045227,-2807.0,0.000144,2]
[419029395,1774785045237,-2693.0,0.000144,2]
[419029396,1774785045246,-959.8630956,0.00014401,2]
[419029397,1774785045255,-160.0,0.00014401,2]
[419029398,1774785045265,-160.0,0.00014401,2]
[419029399,1774785045275,-150.104,0.00014409,2]
[419029400,1774785045285,-250.0,0.00014409,2]
[419029401,1774785045294,-150.0,0.00014409,2]
[419029402,1774785045304,-150.455,0.00014409,2]
[419029403,1774785045313,-150.0,0.00014409,2]
[419029404,1774785045322,-150.0,0.00014409,2]
[419029405,1774785045331,-150.0,0.00014409,2]
[419029406,1774785045341,-150.0,0.00014409,2]
[419029407,1774785045350,-166.66,0.00014431,2]
[419029408,1774785045359,-205.90951439,0.00014463,2]
[419029409,1774785045368,-2130.0,0.0001449,2]
[419029410,1774785045378,-168.18,0.00014501,2]
[419029411,1774785045387,-168.18,0.00014501,2]
[419029412,1774785045397,-1600.0,0.00014511,2]
[419029413,1774785045406,-987.86,0.00014512,2]
[419029414,1774785045416,-2130.0,0.00014521,2]
[419029415,1774785045426,-629.043,0.00014546,2]
[419029416,1774785045436,-3518.0,0.00014546,2]
[419029417,1774785045445,-1346.0,0.00014546,2]
[419029418,1774785045455,-1050.151,0.00014546,2]
[419029420,1774785045464,-1270.708,0.00014546,2]
[419029422,1774785045474,-1219.67,0.00014546,2]
[419029424,1774785045483,-931.845,0.00014546,2]
[419029426,1774785045492,-6013.0,0.00014546,2]
[419029428,1774785045502,-2468.0,0.00014546,2]
[419029430,1774785045511,-153.43,0.00014555,2]
[419029432,1774785045520,-2130.0,0.00014604,2]
[419029433,1774785045529,-2130.0,0.00014616,2]
[419029434,1774785045538,-366.3,0.00014639,2]
[419029435,1774785045548,-485.0,0.0001466,2]
[419029437,1774785045557,-21467.7274003,0.00014697,2]
[419029438,1774785045566,-1000.0,0.00014721,2]
[419029439,1774785045575,-1000.0,0.00014721,2]
[419029440,1774785045587,-1000.0,0.00014721,2]
[419029441,1774785045598,-502.79991996,0.00014721,2]
[419029442,1774785045607,-1000.0,0.00014721,2]
[419029443,1774785045618,-1002.98896701,0.00014721,2]
[419029444,1774785045628,-1000.0,0.00014721,2]
[419029445,1774785045639,-1000.0,0.00014721,2]
[419029446,1774785045649,-724.83675979,0.00014721,2]
[419029447,1774785045658,-1000.0,0.00014721,2]
[419029448,1774785045668,-1000.0,0.00014721,2]
[419029449,1774785045678,-875.52475925,0.00014721,2]
[419029450,1774785045687,-1000.0,0.00014721,2]
[419029451,1774785045697,-1000.0,0.00014721,2]
[419029452,1774785045706,-1000.0,0.00014721,2]
[419029453,1774785045715,-1000.0,0.00014721,2]
[419029454,1774785045725,-1081.10726522,0.00014721,2]
[419029455,1774785045734,-1000.0,0.00014721,2]
[419029456,1774785045744,-1000.0,0.00014721,2]
[419029457,1774785045754,-1636.0,0.00014724,5]
[419029458,1774785045763,-485.0,0.00014741,2]
[419029459,1774785045774,-987.86,0.00014786,2]
[419029460,1774785045784,-433.0,0.00014799,2]
[419029461,1774785045794,-205.90951439,0.00014822,2]
[419029462,1774785045803,-3660.21,0.00014836,2]
[419029463,1774785045813,-1139.53398762,0.00014864,2]
[419029464,1774785045822,-500.0,0.00014877,2]
[419029465,1774785045831,-166.66,0.00014878,2]
[419029466,1774785045841,-426.78,0.00014881,2]
[419029467,1774785045851,-201.45608305,0.000149,2]
[419029468,1774785045860,-485.0,0.00014919,2]
[419029469,1774785045870,-225.04,0.00014922,2]
[419029470,1774785045880,-250.0,0.00014933,2]
[419029471,1774785045890,-166.68,0.0001495,2]
[419029472,1774785045899,-2081.0,0.00014965,2]
[419029473,1774785045909,-156.21269614,0.00014968,2]
[419029474,1774785045918,-305.27172724,0.00015,2]
[419029475,1774785045928,-355.26512199,0.00015,2]
[419029476,1774785045938,-590.30608478,0.00015,2]
[419029477,1774785045948,-458.81509291,0.00015,2]
[419029478,1774785045958,-150.0,0.00015,2]
[419029479,1774785045969,-500.0,0.00015,2]
[419029480,1774785045980,-300.0,0.00015,2]
[419029481,1774785045990,-485.0,0.00015014,2]
[419029482,1774785046000,-987.86,0.0001506,2]
[419029483,1774785046009,-21467.7274003,0.00015063,2]
[419029484,1774785046019,-426.78,0.00015068,2]
[419029485,1774785046029,-680.23,0.00015068,2]
[419029486,1774785046039,-441.94,0.00015068,2]
[419029487,1774785046049,-485.0,0.0001511,2]
[419029488,1774785046058,-399.76774965,0.00015168,2]
[419029489,1774785046068,-205.90951439,0.00015181,2]
[419029490,1774785046078,-258.3521,0.000152,2]
[419029491,1774785046088,-10000.0,0.00015205,2]
[419029492,1774785046098,-525.710804,0.00015217,7]
[419029493,1774785046108,-2081.0,0.00015248,2]
[419029494,1774785046118,-1411.77279152,0.00015268,2]
[419029495,1774785046128,-1500.0,0.00015268,2]
[419029496,1774785046138,-1500.0,0.00015268,2]
[419029497,1774785046148,-685.01158904,0.00015268,2]
[419029498,1774785046159,-1500.0,0.00015268,2]
[419029499,1774785046169,-1003.54904412,0.00015268,2]
[419029500,1774785046179,-1500.0,0.00015268,2]
[419029501,1774785046189,-1500.0,0.00015268,2]
[419029502,1774785046198,-1507.9229115,0.00015268,2]
[419029503,1774785046208,-1500.0,0.00015268,2]
[419029504,1774785046219,-1500.0,0.00015268,2]
[419029505,1774785046229,-581.45389944,0.00015268,2]
[419029506,1774785046239,-1500.0,0.00015268,2]
[419029507,1774785046249,-1500.0,0.00015268,2]
[419029508,1774785046258,-153.43,0.00015278,2]
[419029509,1774785046268,-2081.0,0.00015283,2]
[419029510,1774785046277,-426.80194786,0.00015299,2]
[419029511,1774785046287,-600.0,0.00015305,2]
[419029512,1774785046296,-3292.0,0.00015314,2]
[419029513,1774785046307,-3638.387,0.0001532,2]
[419029514,1774785046317,-242.546,0.0001532,2]
[419029515,1774785046326,-541.18490709,0.00015321,2]
[419029516,1774785046335,-166.66,0.00015325,2]
[419029517,1774785046346,-987.86,0.00015334,2]
[419029518,1774785046355,-500.0,0.0001539,2]
[419029519,1774785046365,-485.0,0.00015391,2]
[419029520,1774785046374,-2897.37,0.000154,2]
[419029521,1774785046383,-1387.01,0.000154,2]
[419029522,1774785046393,-22269.83,0.000154,2]
[419029523,1774785046402,-2081.0,0.00015418,2]
[419029524,1774785046411,-21467.7274003,0.00015429,2]
[419029525,1774785046421,-366.3,0.00015444,2]
[419029527,1774785046431,-2081.0,0.00015458,2]
[419029528,1774785046441,-1759.16,0.000155,2]
[419029529,1774785046451,-4000.0,0.00015507,2]
[419029530,1774785046461,-399.76774964,0.00015534,2]
[419029531,1774785046472,-504.0,0.00015535,3]
[419029533,1774785046482,-205.90951439,0.00015541,2]
[419029534,1774785046493,-33184.0426066,0.00015542,2]
[419029535,1774785046502,-782.746409,0.00015581,2]
[419029536,1774785046512,-600.0,0.000156,5]
[419029537,1774785046522,-225.04,0.000156,2]
[419029538,1774785046532,-987.88540591,0.00015608,2]
[419029540,1774785046542,-333.0408257,0.00015619,2]
[419029541,1774785046554,-321.11159658,0.00015619,2]
[419029542,1774785046565,-500.0,0.00015628,2]
[419029543,1774785046574,-500.0,0.00015628,2]
[419029544,1774785046585,-500.0,0.00015628,2]
[419029545,1774785046594,-500.0,0.00015628,2]
[419029546,1774785046604,-500.0,0.00015628,2]
[419029547,1774785046614,-500.0,0.00015628,2]
[419029548,1774785046624,-500.0,0.00015628,2]
[419029549,1774785046633,-500.0,0.00015628,2]
[419029550,1774785046643,-500.0,0.00015628,2]
[419029551,1774785046652,-500.0,0.00015628,2]
[419029552,1774785046661,-500.0,0.00015628,2]
[419029553,1774785046671,-500.0,0.00015628,2]
[419029554,1774785046680,-500.0,0.00015628,2]
[419029555,1774785046689,-500.0,0.00015628,2]
[419029556,1774785046699,-500.0,0.00015628,2]
[419029557,1774785046708,-500.0,0.00015628,2]
[419029558,1774785046717,-500.0,0.00015628,2]
[419029559,1774785046727,-500.0,0.00015628,2]
[419029560,1774785046737,-500.0,0.00015628,2]
[419029561,1774785046746,-500.0,0.00015628,2]
[419029562,1774785046756,-500.0,0.00015628,2]
[419029563,1774785046765,-500.0,0.00015628,2]
[419029564,1774785046774,-500.0,0.00015628,2]
[419029565,1774785046784,-500.0,0.00015628,2]
[419029566,1774785046793,-500.0,0.00015628,2]
[419029567,1774785046803,-500.0,0.00015628,2]
[419029568,1774785046813,-500.0,0.00015628,2]
[419029569,1774785046823,-500.0,0.00015628,2]
[419029570,1774785046833,-500.0,0.00015628,2]
[419029571,1774785046842,-500.0,0.00015628,2]
[419029572,1774785046852,-500.0,0.00015628,2]
[419029573,1774785046862,-500.0,0.00015628,2]
[419029574,1774785046872,-500.0,0.00015628,2]
[419029575,1774785046882,-500.0,0.00015628,2]
[419029576,1774785046892,-500.0,0.00015628,2]
[419029577,1774785046902,-500.0,0.00015628,2]
[419029578,1774785046913,-500.0,0.00015628,2]
[419029579,1774785046923,-500.0,0.00015628,2]
[419029580,1774785046933,-500.0,0.00015628,2]
[419029581,1774785046943,-500.0,0.00015628,2]
[419029582,1774785046953,-500.0,0.00015628,2]
[419029583,1774785047070,-500.0,0.00015628,2]
[419029584,1774785047080,-500.0,0.00015628,2]
[419029585,1774785047091,-500.0,0.00015628,2]
[419029586,1774785047100,-500.0,0.00015628,2]
[419029587,1774785047110,-500.0,0.00015628,2]
[419029588,1774785047119,-500.0,0.00015628,2]
[419029589,1774785047128,-500.0,0.00015628,2]
[419029590,1774785047137,-500.0,0.00015628,2]
[419029591,1774785047147,-500.0,0.00015628,2]
[419029592,1774785047156,-500.0,0.00015628,2]
[419029593,1774785047166,-500.0,0.00015628,2]
[419029594,1774785047176,-500.0,0.00015628,2]
[419029595,1774785047185,-500.0,0.00015628,2]
[419029596,1774785047195,-500.0,0.00015628,2]
[419029597,1774785047204,-151.0,0.00015629,2]
[419029598,1774785047213,-151.0,0.00015629,2]
[419029599,1774785047223,-151.0,0.00015629,2]
[419029600,1774785047232,-213.706829,0.00015629,2]
[419029601,1774785047241,-209.126428,0.00015629,2]
[419029602,1774785047251,-209.126428,0.00015629,2]
[419029603,1774785047260,-209.126428,0.00015629,2]
[419029604,1774785047270,-151.0,0.00015629,2]
[419029605,1774785047279,-209.126428,0.00015629,2]
[419029606,1774785047288,-151.0,0.00015629,2]
[419029607,1774785047298,-151.0,0.00015629,2]
[419029608,1774785047307,-151.0,0.00015629,2]
[419029609,1774785047316,-151.0,0.00015629,2]
[419029610,1774785047326,-151.0,0.00015629,2]
[419029611,1774785047335,-151.0,0.00015629,2]
[419029612,1774785047345,-157.023358,0.00015629,2]
[419029613,1774785047354,-157.023358,0.00015629,2]
[419029614,1774785047363,-157.023358,0.00015629,2]
[419029615,1774785047373,-157.023358,0.00015629,2]
[419029616,1774785047382,-1007.910664,0.00015629,2]
[419029617,1774785047392,-1007.910664,0.00015629,2]
[419029618,1774785047401,-1007.910664,0.00015629,2]
[419029619,1774785047411,-1007.910664,0.00015629,2]
[419029620,1774785047420,-1303.469842,0.00015629,2]
[419029621,1774785047431,-1303.469842,0.00015629,2]
[419029622,1774785047440,-1303.469842,0.00015629,2]
[419029623,1774785047450,-1303.469842,0.00015629,2]
[419029624,1774785047459,-151.0,0.00015629,2]
[419029625,1774785047469,-151.0,0.00015629,2]
[419029626,1774785047479,-1235.078805,0.00015629,2]
[419029627,1774785047489,-1235.078805,0.00015629,2]
[419029628,1774785047499,-1235.078805,0.00015629,2]
[419029629,1774785047508,-1235.078805,0.00015629,2]
[419029630,1774785047518,-242.727737,0.00015629,2]
[419029631,1774785047530,-242.727737,0.00015629,2]
[419029632,1774785047540,-242.727737,0.00015629,2]
[419029633,1774785047550,-242.727737,0.00015629,2]
[419029634,1774785047559,-151.0,0.00015629,2]
[419029635,1774785047568,-151.0,0.00015629,2]
[419029636,1774785047578,-151.0,0.00015629,2]
[419029637,1774785047588,-301.729144,0.00015629,2]
[419029638,1774785047597,-301.729144,0.00015629,2]
[419029639,1774785047606,-301.729144,0.00015629,2]
[419029640,1774785047615,-301.729144,0.00015629,2]
[419029641,1774785047624,-916547.9115551,0.00015629,2]
[419029642,1774785047634,-16206.2652781,0.00015645,2]
[419029643,1774785047643,-4778.85712069,0.0001568,2]
[419029644,1774785047653,-1570.0,0.0001568,2]
[419029645,1774785047662,-7698.7776625,0.0001569,2]
[419029646,1774785047671,-1785.7,0.000157,2]
[419029647,1774785047681,-600.0,0.000157,5]
[419029648,1774785047690,-485.0,0.0001573,2]
[419029649,1774785047699,-441.94,0.00015753,2]
[419029650,1774785047710,-166.66,0.00015772,2]
[419029651,1774785047720,-449.0,0.00015781,2]
[419029652,1774785047731,-601.0,0.00015781,2]
[419029653,1774785047740,-21467.7274003,0.00015795,2]
[419029654,1774785047750,-600.0,0.000158,5]
[419029655,1774785047759,-2000.0,0.00015816,2]
[419029656,1774785047768,-471.18842002,0.00015816,2]
[419029657,1774785047778,-2000.0,0.00015816,2]
[419029658,1774785047788,-332.25501618,0.00015816,2]
[419029659,1774785047797,-2000.0,0.00015816,2]
[419029660,1774785047806,-2000.0,0.00015816,2]
[419029661,1774785047815,-1504.43813318,0.00015816,2]
[419029662,1774785047825,-725.66563804,0.00015816,2]
[419029663,1774785047835,-2000.0,0.00015816,2]
[419029664,1774785047845,-2000.0,0.0001589,2]
[419029665,1774785047854,-4000.0,0.00015895,2]
[419029666,1774785047864,-3659.94632828,0.000159,2]
[419029667,1774785047874,-205.90951439,0.000159,2]
[419029668,1774785047883,-150.0,0.000159,2]
[419029669,1774785047892,-150.0,0.000159,2]
[419029670,1774785047902,-150.0,0.000159,2]
[419029671,1774785047912,-150.0,0.000159,2]
[419029672,1774785047921,-150.0,0.000159,2]
[419029673,1774785047930,-150.0,0.000159,2]
[419029674,1774785047940,-150.0,0.000159,2]
[419029675,1774785047949,-150.0,0.000159,2]
[419029676,1774785047959,-435.08367478,0.000159,2]
[419029677,1774785047968,-600.0,0.000159,5]
[419029678,1774785047978,-176.43732047,0.000159,2]
[419029679,1774785047987,-399.76774964,0.000159,2]
[419029680,1774785047996,-156.21269614,0.000159,2]
[419029681,1774785048006,-150.0,0.000159,2]
[419029682,1774785048015,-215.540012,0.00015908,7]
[419029683,1774785048024,-881.794256,0.00015908,7]
[419029684,1774785048034,-2000.0,0.00015945,2]
[419029685,1774785048043,-155.41458192,0.00015956,2]
[419029686,1774785048051,-9854.51448985,0.00015956,2]
[419029687,1774785048061,-5000.0,0.0001596,2]
[419029688,1774785048070,-1600.0,0.00015962,2]
[419029689,1774785048080,-500.4387024,0.0001597,2]
[419029690,1774785048090,-400.0,0.0001597,2]
[419029691,1774785048099,-1000.0,0.0001597,2]
[419029692,1774785048109,-1000.0,0.0001597,2]
[419029693,1774785048118,-1000.0,0.0001597,2]
[419029694,1774785048128,-1000.0,0.0001597,2]
[419029695,1774785048138,-1654.65118905,0.0001597,2]